[Event "NM-Senior Hurtig 2018"]
[Site "Frimurer Logen, Norway"]
[Date "2018.11.11"]
[Round "6.8"]
[White "Lea, Per"]
[Black "Synnestvedt, Jan"]
[Result "0-1"]
[TimeControl "20 + 10"]
[WhiteElo "1673"]
[BlackElo "1941"]

1. e4 {[%clk 00:20:09]} {[%emt 00:00:01]} e6 {[%clk 00:20:01]} {[%emt
00:00:09]} 2. d4 {[%clk 00:20:18]} {[%emt 00:00:01]} d5 {[%clk 00:20:09]}
{[%emt 00:00:01]} 3. Nc3 {[%clk 00:20:27]} {[%emt 00:00:02]} Nf6 {[%clk
00:20:12]} {[%emt 00:00:06]} 4. Bg5 {[%clk 00:20:33]} {[%emt 00:00:04]} dxe4
{[%clk 00:20:18]} {[%emt 00:00:04]} 5. Nxe4 {[%clk 00:20:38]} {[%emt 00:00:05]}
Be7 {[%emt 00:00:01]} 6. Nxf6+ {[%emt 00:00:16]} Bxf6 {[%clk 00:20:08]} {[%emt
00:00:03]} 7. Bxf6 {[%clk 00:20:46]} {[%emt 00:00:03]} Qxf6 {[%clk 00:20:10]}
{[%emt 00:00:08]} 8. Nf3 {[%clk 00:20:09]} {[%emt 00:00:46]} O-O {[%clk
00:20:07]} {[%emt 00:00:12]} 9. Bd3 {[%clk 00:19:35]} {[%emt 00:00:46]} c5
{[%clk 00:19:11]} {[%emt 00:01:06]} 10. O-O {[%clk 00:18:49]} {[%emt 00:00:55]}
Nc6 {[%clk 00:19:06]} {[%emt 00:00:16]} 11. c3 {[%clk 00:18:44]} {[%emt
00:00:15]} cxd4 {[%clk 00:19:14]} {[%emt 00:00:02]} 12. Nxd4 {[%clk 00:18:27]}
{[%emt 00:00:27]} Nxd4 {[%clk 00:19:16]} {[%emt 00:00:07]} 13. cxd4 {[%clk
00:18:36]} {[%emt 00:00:02]} Rd8 {[%clk 00:16:37]} {[%emt 00:02:48]} 14. Qc2
{[%clk 00:18:45]} {[%emt 00:00:02]} h6 {[%clk 00:16:45]} {[%emt 00:00:02]} 15.
Rfd1 {[%clk 00:18:07]} {[%emt 00:00:48]} Bd7 {[%clk 00:15:13]} {[%emt
00:01:42]} 16. Be4 {[%clk 00:17:20]} {[%emt 00:00:56]} Rac8 {[%clk 00:15:02]}
{[%emt 00:00:21]} 17. Qb3 {[%clk 00:15:36]} {[%emt 00:01:55]} b6 {[%clk
00:14:03]} {[%emt 00:01:09]} 18. d5 {[%clk 00:15:17]} {[%emt 00:00:28]} Qe5
{[%clk 00:13:31]} {[%emt 00:00:42]} 19. dxe6 {[%clk 00:11:50]} {[%emt
00:03:37]} Bxe6 {[%clk 00:13:37]} {[%emt 00:00:04]} 20. Rxd8+ {[%clk 00:12:00]}
{[%emt 00:00:01]} Rxd8 {[%clk 00:13:46]} {[%emt 00:00:02]} 21. Qc2 {[%clk
00:12:02]} {[%emt 00:00:07]} Rc8 {[%clk 00:12:15]} {[%emt 00:01:40]} 22. Qe2
{[%clk 00:10:54]} {[%emt 00:01:19]} Bf5 {[%clk 00:09:44]} {[%emt 00:02:41]} 23.
f3 {[%clk 00:08:36]} {[%emt 00:02:28]} Bxe4 {[%clk 00:08:44]} {[%emt 00:01:09]}
24. fxe4 {[%clk 00:08:41]} {[%emt 00:00:06]} Qd4+ {[%clk 00:08:41]} {[%emt
00:00:13]} 25. Kf1 {[%clk 00:08:36]} {[%emt 00:00:14]} Re8 {[%clk 00:07:58]}
{[%emt 00:00:53]} 26. Re1 {[%clk 00:08:33]} {[%emt 00:00:13]} Re5 {[%clk
00:07:32]} {[%emt 00:00:37]} 27. Rd1 {[%clk 00:07:42]} {[%emt 00:01:01]} Qa4
{[%clk 00:06:46]} {[%emt 00:00:56]} 28. b3 {[%clk 00:05:44]} {[%emt 00:02:09]}
Qe8 {[%clk 00:06:51]} {[%emt 00:00:04]} 29. Rd4 {[%clk 00:05:39]} {[%emt
00:00:15]} Qe7 {[%clk 00:05:13]} {[%emt 00:01:48]} 30. Kf2 {[%clk 00:03:02]}
{[%emt 00:02:47]} Qh4+ {[%clk 00:04:49]} {[%emt 00:00:34]} 31. Kf3 {[%clk
00:01:35]} {[%emt 00:01:37]} Qxh2 {[%emt 00:00:42]} 32. g3 Qh5+ {[%clk
00:03:17]} {[%emt 00:01:09]} 33. g4 {[%clk 00:01:42]} {[%emt 00:00:13]} Qh3+
{[%clk 00:03:08]} {[%emt 00:00:19]} 34. Kf4 {[%clk 00:01:32]} {[%emt 00:00:20]}
f6 {[%clk 00:02:34]} {[%emt 00:00:44]} 35. Qf3 {[%clk 00:01:41]} {[%emt
00:00:02]} Qh2+ {[%clk 00:02:23]} {[%emt 00:00:20]} 36. Ke3 {[%clk 00:01:43]}
{[%emt 00:00:08]} Qxa2 {[%clk 00:02:11]} {[%emt 00:00:21]} 37. Rd8+ {[%clk
00:01:50]} {[%emt 00:00:03]} Kh7 {[%clk 00:02:14]} {[%emt 00:00:07]} 38. Rd3
{[%clk 00:01:59]} {[%emt 00:00:02]} Qa1 {[%clk 00:01:59]} {[%emt 00:00:25]} 39.
Kf2 {[%clk 00:01:31]} {[%emt 00:00:37]} a5 {[%clk 00:01:59]} {[%emt 00:00:12]}
40. Qe3 {[%clk 00:01:34]} {[%emt 00:00:06]} b5 {[%clk 00:01:50]} {[%emt
00:00:18]} 41. Rd5 {[%clk 00:01:38]} {[%emt 00:00:06]} a4 {[%clk 00:01:47]}
{[%emt 00:00:14]} 42. bxa4 {[%clk 00:01:09]} {[%emt 00:00:40]} bxa4 {[%clk
00:01:56]} 43. Rd3 {[%clk 00:01:01]} {[%emt 00:00:18]} Qb2+ {[%clk 00:01:52]}
{[%emt 00:00:13]} 44. Kf3 {[%clk 00:01:06]} {[%emt 00:00:05]} Qh2 {[%clk
00:01:59]} {[%emt 00:00:03]} 45. Rd2 {[%clk 00:01:01]} {[%emt 00:00:16]} Qh3+
{[%clk 00:02:07]} {[%emt 00:00:02]} 46. Ke2 {[%clk 00:01:09]} Qxe3+ {[%clk
00:02:16]} {[%emt 00:00:01]} 47. Kxe3 {[%clk 00:01:19]} Ra5 {[%clk 00:02:25]}
{[%emt 00:00:01]} 48. Ra2 {[%clk 00:01:27]} Kg6 {[%clk 00:02:31]} {[%emt
00:00:05]} 49. Kf4 {[%clk 00:01:36]} a3 {[%clk 00:02:38]} {[%emt 00:00:03]} 50.
Ra1 {[%emt 00:00:08]} 0-1

[Event "NM-Senior Hurtig 2018"]
[Site "Frimurer Logen, Norway"]
[Date "2018.11.11"]
[Round "6.9"]
[White "Jansson, Helge"]
[Black "Taksrud, Vidar"]
[Result "0-1"]
[TimeControl "20 + 10"]
[WhiteElo "1712"]
[BlackElo "1861"]

1. e4 {[%clk 00:20:06]} {[%emt 00:00:03]} c5 {[%clk 00:20:08]} {[%emt
00:00:03]} 2. Nc3 {[%clk 00:20:14]} {[%emt 00:00:02]} Nc6 {[%clk 00:20:17]}
{[%emt 00:00:01]} 3. f4 {[%clk 00:20:22]} {[%emt 00:00:02]} e6 {[%clk
00:20:05]} {[%emt 00:00:21]} 4. Bb5 {[%clk 00:20:25]} {[%emt 00:00:08]} d5
{[%clk 00:19:23]} {[%emt 00:00:52]} 5. Bxc6+ {[%clk 00:19:36]} {[%emt
00:00:59]} bxc6 {[%clk 00:19:31]} {[%emt 00:00:02]} 6. Nf3 {[%clk 00:19:09]}
{[%emt 00:00:36]} Nf6 {[%clk 00:18:12]} {[%emt 00:01:30]} 7. e5 {[%clk
00:18:54]} {[%emt 00:00:25]} d4 {[%clk 00:18:03]} {[%emt 00:00:19]} 8. exf6
{[%clk 00:17:56]} {[%emt 00:01:08]} dxc3 {[%clk 00:18:11]} {[%emt 00:00:02]} 9.
O-O {[%clk 00:17:16]} {[%emt 00:00:49]} gxf6 {[%clk 00:17:40]} {[%emt
00:00:42]} 10. dxc3 {[%clk 00:16:41]} {[%emt 00:00:46]} Ba6 {[%clk 00:17:43]}
{[%emt 00:00:06]} 11. Re1 {[%clk 00:16:26]} {[%emt 00:00:26]} Qxd1 {[%clk
00:16:08]} {[%emt 00:01:45]} 12. Rxd1 {[%clk 00:16:34]} {[%emt 00:00:01]} Rg8
{[%clk 00:16:04]} {[%emt 00:00:14]} 13. Be3 {[%clk 00:16:13]} {[%emt 00:00:30]}
Be2 {[%clk 00:16:06]} {[%emt 00:00:08]} 14. Nd2 {[%clk 00:14:49]} {[%emt
00:01:35]} Bxd1 {[%clk 00:16:12]} {[%emt 00:00:05]} 15. Rxd1 {[%clk 00:14:56]}
{[%emt 00:00:01]} O-O-O {[%clk 00:15:38]} {[%emt 00:00:44]} 16. Rb1 {[%clk
00:12:14]} {[%emt 00:02:53]} Be7 {[%clk 00:15:18]} {[%emt 00:00:29]} 17. Kf2
{[%clk 00:11:47]} {[%emt 00:00:37]} h5 {[%clk 00:14:48]} {[%emt 00:00:40]} 18.
Nc4 {[%clk 00:07:47]} {[%emt 00:04:11]} Rd5 {[%clk 00:12:40]} {[%emt 00:02:17]}
19. b4 {[%clk 00:07:26]} {[%emt 00:00:32]} cxb4 {[%clk 00:12:34]} {[%emt
00:00:15]} 20. Bxa7 {[%clk 00:07:03]} {[%emt 00:00:34]} Bc5+ {[%clk 00:11:39]}
{[%emt 00:01:04]} 21. Bxc5 {[%clk 00:06:20]} {[%emt 00:00:54]} Rxc5 {[%clk
00:11:46]} {[%emt 00:00:03]} 22. Nd6+ {[%clk 00:05:16]} {[%emt 00:01:14]} Kc7
{[%clk 00:11:52]} {[%emt 00:00:04]} 23. Ne4 {[%clk 00:05:14]} {[%emt 00:00:12]}
Rc4 {[%clk 00:11:32]} {[%emt 00:00:30]} 24. Rxb4 {[%clk 00:05:10]} {[%emt
00:00:14]} Rxb4 {[%clk 00:11:34]} {[%emt 00:00:08]} 25. cxb4 {[%clk 00:05:19]}
{[%emt 00:00:01]} f5 {[%clk 00:10:52]} {[%emt 00:00:52]} 26. Nc5 {[%clk
00:05:16]} {[%emt 00:00:13]} Rd8 {[%clk 00:10:29]} {[%emt 00:00:32]} 27. Ke2
{[%clk 00:05:18]} {[%emt 00:00:09]} Rd4 {[%clk 00:10:32]} {[%emt 00:00:05]} 28.
Nd3 {[%clk 00:05:20]} {[%emt 00:00:10]} f6 {[%clk 00:10:11]} {[%emt 00:00:31]}
29. a3 {[%clk 00:05:07]} {[%emt 00:00:23]} e5 {[%clk 00:09:56]} {[%emt
00:00:24]} 30. g3 {[%clk 00:03:43]} {[%emt 00:01:34]} Rc4 {[%clk 00:09:33]}
{[%emt 00:00:34]} 31. Kd2 {[%clk 00:03:45]} {[%emt 00:00:09]} e4 {[%clk
00:09:41]} {[%emt 00:00:01]} 32. Nc5 {[%clk 00:03:29]} {[%emt 00:00:26]} Kd6
{[%clk 00:07:51]} {[%emt 00:02:00]} 33. h3 {[%clk 00:02:16]} {[%emt 00:01:23]}
Rxc5 {[%clk 00:06:33]} {[%emt 00:01:27]} 34. bxc5+ {[%clk 00:02:08]} {[%emt
00:00:19]} Kxc5 {[%clk 00:06:41]} {[%emt 00:00:02]} 35. Kc3 {[%clk 00:01:42]}
{[%emt 00:00:36]} Kb5 {[%clk 00:06:43]} {[%emt 00:00:08]} 36. Kd4 {[%clk
00:01:18]} {[%emt 00:00:34]} Ka4 {[%clk 00:06:50]} {[%emt 00:00:03]} 37. c3
{[%clk 00:01:16]} {[%emt 00:00:12]} Kxa3 {[%clk 00:06:56]} {[%emt 00:00:04]} 38.
h4 {[%clk 00:00:14]} {[%emt 00:01:12]} c5+ {[%clk 00:06:56]} {[%emt 00:00:10]}
39. Ke3 {[%clk 00:00:22]} {[%emt 00:00:02]} Kb3 {[%clk 00:07:04]} {[%emt
00:00:02]} 40. Kd2 {[%clk 00:00:31]} {[%emt 00:00:01]} c4 {[%clk 00:07:10]}
{[%emt 00:00:04]} 0-1

[Event "NM-Senior Hurtig 2018"]
[Site "Frimurer Logen, Norway"]
[Date "2018.11.11"]
[Round "6.10"]
[White "Larsen, Arild"]
[Black "Bjørgvik, Jan Arne"]
[Result "1-0"]
[TimeControl "20 + 10"]
[WhiteElo "1858"]
[BlackElo "1723"]

1. d4 {[%clk 00:20:07]} {[%emt 00:00:02]} Nf6 {[%clk 00:19:50]} {[%emt
00:00:20]} 2. c4 {[%clk 00:20:14]} {[%emt 00:00:03]} d6 {[%clk 00:19:54]}
{[%emt 00:00:06]} 3. Nc3 {[%clk 00:20:22]} {[%emt 00:00:02]} Nbd7 {[%clk
00:20:01]} {[%emt 00:00:03]} 4. e4 {[%clk 00:20:29]} {[%emt 00:00:03]} e5
{[%clk 00:20:07]} {[%emt 00:00:04]} 5. Nge2 {[%clk 00:20:33]} {[%emt 00:00:06]}
a5 {[%clk 00:19:19]} {[%emt 00:00:58]} 6. f3 {[%clk 00:20:36]} {[%emt
00:00:06]} Be7 {[%clk 00:18:57]} {[%emt 00:00:33]} 7. Be3 {[%clk 00:20:32]}
{[%emt 00:00:13]} O-O {[%clk 00:18:53]} {[%emt 00:00:15]} 8. Qd2 {[%clk
00:20:08]} {[%emt 00:00:34]} exd4 {[%clk 00:18:26]} {[%emt 00:00:37]} 9. Nxd4
{[%clk 00:20:03]} {[%emt 00:00:14]} Ne5 {[%clk 00:17:02]} {[%emt 00:01:34]} 10.
Be2 {[%clk 00:19:56]} {[%emt 00:00:18]} c6 {[%clk 00:15:51]} {[%emt 00:01:21]}
11. O-O {[%clk 00:19:52]} {[%emt 00:00:14]} Qc7 {[%clk 00:15:16]} {[%emt
00:00:45]} 12. Rac1 {[%clk 00:19:40]} {[%emt 00:00:22]} Be6 {[%clk 00:15:05]}
{[%emt 00:00:21]} 13. b3 {[%clk 00:19:16]} {[%emt 00:00:34]} Rad8 {[%clk
00:14:57]} {[%emt 00:00:18]} 14. Nd5 {[%clk 00:17:37]} {[%emt 00:01:48]} Bxd5
{[%clk 00:09:38]} {[%emt 00:05:29]} 15. cxd5 {[%clk 00:17:42]} {[%emt
00:00:05]} c5 {[%clk 00:07:58]} {[%emt 00:01:51]} 16. Nf5 {[%clk 00:17:02]}
{[%emt 00:00:49]} Ne8 {[%clk 00:06:09]} {[%emt 00:02:00]} 17. Nxe7+ {[%clk
00:16:58]} {[%emt 00:00:15]} Qxe7 {[%clk 00:06:10]} {[%emt 00:00:07]} 18. Qxa5
{[%clk 00:17:03]} {[%emt 00:00:05]} Nc7 {[%clk 00:05:54]} {[%emt 00:00:27]} 19.
Qd2 {[%clk 00:16:16]} {[%emt 00:00:56]} f5 {[%clk 00:05:10]} {[%emt 00:00:55]}
20. Bg5 {[%clk 00:16:19]} {[%emt 00:00:06]} Qd7 {[%clk 00:05:00]} {[%emt
00:00:20]} 21. Bxd8 {[%clk 00:16:25]} {[%emt 00:00:05]} Qxd8 {[%clk 00:05:08]}
{[%emt 00:00:02]} 22. Rcd1 {[%clk 00:14:35]} {[%emt 00:01:59]} f4 {[%clk
00:04:52]} {[%emt 00:00:26]} 23. Qa5 {[%clk 00:13:08]} {[%emt 00:01:38]} Qe7
{[%clk 00:04:04]} {[%emt 00:00:57]} 24. a4 {[%clk 00:13:05]} {[%emt 00:00:13]}
h5 {[%clk 00:03:45]} {[%emt 00:00:29]} 25. h3 {[%clk 00:11:30]} {[%emt
00:01:45]} g5 {[%clk 00:03:33]} {[%emt 00:00:23]} 26. Kf2 {[%clk 00:08:48]}
{[%emt 00:02:52]} Ne8 {[%clk 00:03:12]} {[%emt 00:00:31]} 27. Ke1 {[%clk
00:08:31]} {[%emt 00:00:27]} Nf6 {[%clk 00:03:06]} {[%emt 00:00:16]} 28. Kd2
{[%clk 00:08:08]} {[%emt 00:00:32]} g4 {[%clk 00:01:24]} {[%emt 00:01:53]} 29.
hxg4 {[%clk 00:08:11]} {[%emt 00:00:07]} hxg4 {[%clk 00:01:31]} {[%emt
00:00:02]} 30. Kc2 {[%clk 00:07:56]} {[%emt 00:00:26]} Rc8 {[%clk 00:01:14]}
{[%emt 00:00:27]} 31. Kb2 {[%clk 00:07:50]} {[%emt 00:00:16]} c4 {[%clk
00:01:13]} {[%emt 00:00:11]} 32. Rc1 {[%clk 00:07:25]} {[%emt 00:00:34]} Nd3+
{[%clk 00:00:20]} {[%emt 00:01:04]} 33. Bxd3 {[%clk 00:07:30]} {[%emt
00:00:05]} Qe5+ {[%clk 00:00:28]} {[%emt 00:00:02]} 34. Qc3 {[%clk 00:07:15]}
{[%emt 00:00:24]} Qe7 {[%clk 00:00:21]} {[%emt 00:00:19]} 35. Bxc4 {[%clk
00:07:18]} {[%emt 00:00:06]} Qd8 {[%clk 00:20:00]} {[%emt 00:00:11]} 1-0

[Event "NM-Senior Hurtig 2018"]
[Site "Frimurer Logen, Norway"]
[Date "2018.11.11"]
[Round "6.11"]
[White "Smedby, Ole"]
[Black "Wibe, Per H."]
[Result "1-0"]
[TimeControl "20 + 10"]
[WhiteElo "1823"]
[BlackElo "1607"]

1. e4 {[%clk 00:20:03]} {[%emt 00:00:04]} c6 {[%clk 00:19:56]} {[%emt
00:00:17]} 2. d4 {[%clk 00:20:04]} {[%emt 00:00:09]} d5 {[%clk 00:20:02]}
{[%emt 00:00:03]} 3. e5 {[%clk 00:20:06]} {[%emt 00:00:09]} e6 {[%clk
00:20:10]} {[%emt 00:00:02]} 4. Bd3 {[%clk 00:19:58]} {[%emt 00:00:17]} c5
{[%clk 00:19:42]} {[%emt 00:00:39]} 5. c3 {[%clk 00:20:05]} {[%emt 00:00:04]}
cxd4 {[%clk 00:19:45]} {[%emt 00:00:06]} 6. cxd4 {[%clk 00:20:12]} {[%emt
00:00:03]} Nc6 {[%clk 00:19:28]} {[%emt 00:00:27]} 7. Nf3 {[%clk 00:20:14]}
{[%emt 00:00:08]} Bd7 {[%clk 00:17:18]} {[%emt 00:02:21]} 8. Nc3 {[%clk
00:20:12]} {[%emt 00:00:11]} Qb6 {[%clk 00:16:18]} {[%emt 00:01:09]} 9. Bc2
{[%clk 00:16:21]} {[%emt 00:04:02]} Rc8 {[%clk 00:15:35]} {[%emt 00:00:53]} 10.
a3 {[%clk 00:15:46]} {[%emt 00:00:46]} Nge7 {[%clk 00:14:42]} {[%emt 00:01:03]}
11. O-O {[%clk 00:14:52]} {[%emt 00:01:03]} Nf5 {[%clk 00:13:33]} {[%emt
00:01:19]} 12. Bxf5 {[%clk 00:14:39]} {[%emt 00:00:22]} exf5 {[%clk 00:13:41]}
{[%emt 00:00:03]} 13. Nxd5 {[%clk 00:14:29]} {[%emt 00:00:20]} Qa5 {[%clk
00:09:54]} {[%emt 00:03:56]} 14. Nc3 {[%clk 00:14:10]} {[%emt 00:00:30]} Be6
{[%clk 00:07:38]} {[%emt 00:02:25]} 15. d5 {[%clk 00:13:32]} {[%emt 00:00:49]}
Rd8 {[%clk 00:07:41]} {[%emt 00:00:08]} 16. Bg5 {[%clk 00:11:26]} {[%emt
00:02:15]} Be7 {[%clk 00:06:01]} {[%emt 00:01:49]} 17. Bxe7 {[%clk 00:11:27]}
{[%emt 00:00:10]} Nxe7 {[%clk 00:05:48]} {[%emt 00:00:22]} 18. b4 {[%clk
00:09:45]} {[%emt 00:01:53]} Qa6 {[%clk 00:04:36]} {[%emt 00:01:21]} 19. d6
{[%clk 00:08:48]} {[%emt 00:01:09]} Ng6 {[%clk 00:04:00]} {[%emt 00:00:45]} 20.
Qa4+ {[%clk 00:08:27]} {[%emt 00:00:31]} Qxa4 {[%clk 00:04:08]} {[%emt
00:00:02]} 21. Nxa4 {[%clk 00:08:36]} {[%emt 00:00:02]} b6 {[%clk 00:04:02]}
{[%emt 00:00:15]} 22. Rac1 {[%clk 00:08:22]} {[%emt 00:00:24]} O-O {[%clk
00:03:22]} {[%emt 00:00:49]} 23. Rc7 {[%clk 00:08:02]} {[%emt 00:00:30]} Rd7
{[%clk 00:03:04]} {[%emt 00:00:29]} 24. Rfc1 {[%clk 00:07:54]} {[%emt
00:00:18]} Rfd8 {[%clk 00:02:33]} {[%emt 00:00:40]} 25. Nb2 {[%clk 00:06:39]}
{[%emt 00:01:26]} h6 {[%clk 00:02:22]} {[%emt 00:00:21]} 26. g3 {[%clk
00:05:45]} {[%emt 00:01:03]} Bd5 {[%clk 00:01:45]} {[%emt 00:00:48]} 27. Nd4
{[%clk 00:04:46]} {[%emt 00:01:09]} Nxe5 {[%clk 00:01:25]} {[%emt 00:00:29]} 28.
Nxf5 {[%clk 00:04:54]} {[%emt 00:00:03]} Be6 {[%clk 00:00:59]} {[%emt
00:00:36]} 29. Ne7+ {[%clk 00:03:01]} {[%emt 00:02:03]} Kh7 {[%clk 00:00:47]}
{[%emt 00:00:22]} 30. f4 {[%clk 00:03:05]} {[%emt 00:00:06]} Nf3+ {[%emt
00:01:21]} 31. Nc6 {[%emt 00:00:02]} Nd4 {[%clk 00:20:00]} 1-0